bitfinex/quotes_BTCUSD_20240620
["timestamp","ask_amount","ask_price","bid_price","bid_amount"]
[1718881702969,2.03732202,66471.0,66470.0,0.19523982]
[1718881703151,2.05732202,66471.0,66470.0,0.19523982]
[1718881703815,2.03732202,66471.0,66470.0,0.19523982]
[1718881703980,2.05732202,66471.0,66470.0,0.19523982]
[1718881704189,2.05832202,66471.0,66470.0,0.20923982]
[1718881704810,2.05732202,66471.0,66470.0,0.20323982]
[1718881705053,2.05832202,66471.0,66470.0,0.20123982]
[1718881705271,2.05832202,66471.0,66470.0,0.20723982]
[1718881705498,2.05511954,66471.0,66470.0,0.20723982]
[1718881705716,2.05434418,66471.0,66470.0,0.20123982]
[1718881705960,2.05434418,66471.0,66470.0,0.20923982]
[1718881706444,2.11411988,66471.0,66470.0,0.20923982]
[1718881707181,2.11138211,66471.0,66470.0,0.20923982]
[1718881707997,2.11138211,66471.0,66470.0,0.014]
[1718881708403,2.11180801,66471.0,66470.0,0.014]
[1718881709908,2.11180801,66471.0,66470.0,0.01157144]
[1718881710756,2.41269101,66471.0,66470.0,0.01157144]
[1718881710944,2.61269101,66471.0,66470.0,0.01157144]
[1718881711359,1.64738008,66461.0,66460.0,0.0426787]
[1718881711593,1.64738008,66461.0,66440.0,0.07628172]
[1718881711594,0.47184308,66458.0,66457.0,0.0426787]
[1718881711825,0.47184308,66458.0,66451.0,0.0426787]
[1718881711826,0.17091608,66452.0,66451.0,0.0426787]
[1718881712052,1.70217558,66452.0,66451.0,0.19523982]
[1718881712417,2.00314458,66452.0,66451.0,0.15256112]
[1718881712419,2.00314458,66452.0,66445.0,0.0426787]
[1718881712420,1.05391808,66446.0,66445.0,0.0426787]
[1718881712597,1.00365908,66441.0,66440.0,0.0426787]
[1718881712804,1.66029858,66441.0,66440.0,0.15256112]
[1718881713001,0.75300208,66439.0,66438.0,0.0426787]
[1718881713203,1.42965158,66439.0,66438.0,0.19523982]
[1718881713432,1.40965158,66439.0,66438.0,0.19523982]
[1718881713602,1.71085182,66439.0,66438.0,0.15256112]
[1718881713930,1.50465701,66439.0,66438.0,0.19523982]
[1718881714089,1.40982382,66439.0,66438.0,0.19523982]
[1718881714487,0.35579374,66439.0,66438.0,0.19523982]
[1718881714741,0.35579374,66439.0,66438.0,0.36532374]
[1718881715072,0.33203845,66439.0,66438.0,0.7027268]
[1718881715281,0.33203845,66439.0,66438.0,1.5138908]
[1718881715483,0.31250942,66439.0,66438.0,1.9169228]
[1718881715758,0.31250942,66439.0,66438.0,10.9169228]
[1718881715997,0.31350942,66439.0,66438.0,10.9219228]
[1718881716469,0.300944,66458.0,66438.0,10.9219228]
[1718881716470,0.45184608,66458.0,66457.0,0.0426787]
[1718881716700,0.8088123,66458.0,66457.0,0.19523982]
[1718881716914,1.1097563,66458.0,66457.0,0.19523982]
[1718881717594,0.35696622,66458.0,66457.0,0.19523982]
[1718881717770,0.5078683,66458.0,66457.0,0.19523982]
[1718881718108,1.1097503,66458.0,66457.0,0.19523982]
[1718881718820,1.1097503,66458.0,66457.0,0.20023982]
[1718881719259,1.1097503,66458.0,66457.0,0.19523982]
[1718881719480,0.35796622,66458.0,66457.0,0.21523982]
[1718881719652,0.07905143,66458.0,66457.0,0.21523982]
[1718881719880,0.07861935,66458.0,66457.0,0.37808821]
[1718881720083,0.07861935,66458.0,66457.0,1.24830213]
[1718881720285,0.07861935,66458.0,66457.0,1.54924813]
[1718881720491,0.001,66458.0,66457.0,2.00889413]
[1718881720840,0.001,66458.0,66457.0,1.99589413]
[1718881721046,0.00043208,66472.0,66461.0,0.01956792]
[1718881721297,0.00043208,66474.0,66473.0,0.0426787]
[1718881721544,0.00043208,66474.0,66473.0,0.19523982]
[1718881721755,0.00043208,66474.0,66473.0,0.2075449]
[1718881722625,0.00129208,66478.0,66477.0,0.0426787]
[1718881722797,0.00086,66478.0,66477.0,0.61031792]
[1718881722998,0.00086,66478.0,66477.0,0.9234534]
[1718881723351,0.00086,66478.0,66477.0,0.94302132]
[1718881723984,0.00086,66478.0,66477.0,1.17800304]
[1718881724205,0.00086,66478.0,66477.0,1.54285804]
[1718881724422,0.00848,66479.0,66478.0,0.41982272]
[1718881724627,0.00848,66479.0,66478.0,0.87323484]
[1718881724765,0.00848,66479.0,66478.0,1.18635008]
[1718881724965,0.00848,66479.0,66478.0,1.54345008]
[1718881725226,0.00848,66479.0,66478.0,1.84430108]
[1718881726308,0.00948,66479.0,66478.0,1.85830108]
[1718881726511,0.00948,66479.0,66478.0,2.22530108]
[1718881726896,0.00948,66479.0,66478.0,2.23930108]
[1718881727726,0.00948,66479.0,66478.0,2.21130108]
[1718881727727,0.00848,66479.0,66478.0,2.21130108]
[1718881727936,0.00848,66479.0,66478.0,2.12330108]
[1718881728138,0.00848,66479.0,66478.0,2.22530108]
[1718881728341,0.00848,66479.0,66478.0,0.84949908]
[1718881728543,0.00848,66479.0,66478.0,0.88549908]
[1718881728772,0.00848,66479.0,66478.0,1.18635008]
[1718881728970,0.00848,66479.0,66478.0,1.30235008]
[1718881729191,0.00848,66479.0,66478.0,2.19630108]
[1718881729398,0.00848,66479.0,66478.0,2.23230108]
[1718881729567,0.00848,66479.0,66478.0,2.21830108]
[1718881730086,0.00848,66479.0,66478.0,2.23230108]
[1718881730283,0.00848,66479.0,66478.0,2.21830108]
[1718881730484,0.00848,66479.0,66478.0,2.23230108]
[1718881730869,0.00848,66479.0,66478.0,2.26930108]
[1718881731306,0.00848,66479.0,66478.0,2.25530108]
[1718881731888,0.00848,66479.0,66478.0,2.57015208]
[1718881732094,0.00848,66479.0,66478.0,2.77275208]
[1718881732490,0.00848,66479.0,66478.0,2.26930108]
[1718881733155,0.00848,66479.0,66478.0,2.29952108]
[1718881733308,0.00848,66479.0,66478.0,2.60037208]
[1718881733515,0.00848,66479.0,66478.0,3.39356208]
[1718881733920,0.00848,66479.0,66478.0,3.37956208]
[1718881734166,0.00848,66479.0,66478.0,3.39356208]
[1718881734627,0.00848,66479.0,66478.0,3.37956208]
[1718881734835,0.00862,66485.0,66484.0,1.61640572]
[1718881735022,0.0132465,66498.0,66484.0,1.61640572]
[1718881735023,0.0132465,66498.0,66493.0,0.98037172]
[1718881735201,0.0132465,66498.0,66493.0,1.75749884]
[1718881735404,0.0132465,66498.0,66493.0,2.07042679]
[1718881735601,0.0132465,66498.0,66493.0,1.64464379]
[1718881735802,0.0132465,66498.0,66493.0,1.34386079]
[1718881736508,0.0132465,66498.0,66493.0,1.66764379]
[1718881736716,0.0132465,66498.0,66493.0,1.78364379]
[1718881736927,0.0132465,66498.0,66493.0,1.68164379]
[1718881737148,0.0132465,66498.0,66493.0,1.65864379]
[1718881737351,0.0132465,66498.0,66493.0,1.25006079]
[1718881737778,0.0132465,66498.0,66493.0,1.55084379]
[1718881738005,0.0132465,66498.0,66493.0,1.56484379]
[1718881738414,0.0132465,66498.0,66493.0,1.96762679]
[1718881738620,0.0132465,66498.0,66493.0,2.03323379]
[1718881739041,0.0132465,66498.0,66493.0,1.81764379]
[1718881739250,0.0132465,66498.0,66493.0,1.51686079]
[1718881739667,0.0132465,66498.0,66493.0,1.91964379]
[1718881740089,0.0132465,66498.0,66493.0,1.94064379]
[1718881740295,0.0132465,66498.0,66493.0,1.81764379]
[1718881740471,0.0132465,66498.0,66493.0,1.91764379]
[1718881740924,0.0132465,66498.0,66493.0,1.94264379]
[1718881741139,0.0132465,66498.0,66493.0,0.39253587]
[1718881741341,0.02543208,66494.0,66493.0,0.23383587]
[1718881741553,0.02543208,66494.0,66493.0,0.23022511]
[1718881741799,0.3140065,66498.0,66497.0,0.0411298]
[1718881742008,0.4643865,66498.0,66497.0,0.19369092]
[1718881742217,0.0132465,66498.0,66497.0,0.19369092]
[1718881742391,0.1636265,66498.0,66497.0,0.20220976]
[1718881742647,0.0132465,66498.0,66497.0,0.20220976]
[1718881742859,0.1636265,66498.0,66497.0,0.20220976]
[1718881743071,0.7651465,66498.0,66497.0,0.20220976]
[1718881743286,0.7651465,66498.0,66497.0,0.21620976]
[1718881743487,1.65566573,66498.0,66497.0,0.20769092]
[1718881743695,1.65566573,66498.0,66497.0,0.16656112]
[1718881743696,1.35490573,66498.0,66497.0,0.16656112]
[1718881743918,1.65566573,66498.0,66497.0,0.16656112]
[1718881744146,1.35490573,66498.0,66497.0,0.19369092]
[1718881744359,1.37465416,66498.0,66497.0,0.16656112]
[1718881744582,1.37465416,66498.0,66497.0,0.20769092]
[1718881744809,1.05414573,66498.0,66497.0,0.20769092]
[1718881745046,1.35490573,66498.0,66497.0,0.19369092]
[1718881745274,1.05414573,66498.0,66497.0,0.19369092]
[1718881745521,0.75338573,66498.0,66497.0,0.19369092]
[1718881745980,1.25414573,66498.0,66497.0,0.20769092]
[1718881746212,0.95338573,66498.0,66497.0,0.19869092]
[1718881746442,0.80300573,66498.0,66497.0,0.19869092]
[1718881746680,0.80386573,66498.0,66497.0,0.19869092]
[1718881746921,0.23076573,66498.0,66497.0,0.50798398]
[1718881747153,0.23076573,66498.0,66497.0,0.21621898]
[1718881747384,0.23049078,66498.0,66497.0,0.67836598]
[1718881747610,0.23753719,66498.0,66497.0,0.65336598]
[1718881747841,0.23049228,66498.0,66497.0,0.20921898]
[1718881748141,0.68163228,66498.0,66497.0,0.21821898]
[1718881748389,1.85847409,66498.0,66497.0,0.17008918]
[1718881748605,1.90209417,66498.0,66497.0,0.16156112]
[1718881748859,1.90209417,66498.0,66497.0,0.17556112]
[1718881749303,2.20285417,66498.0,66497.0,0.009]
[1718881749739,1.03838604,66498.0,66497.0,0.20269092]
[1718881749971,0.94619409,66498.0,66497.0,0.20269092]
[1718881750180,0.94619409,66498.0,66497.0,0.20222807]
[1718881750450,0.94619409,66498.0,66497.0,0.19369092]
[1718881750665,0.94619409,66498.0,66497.0,0.20769092]
[1718881750874,0.94619409,66498.0,66497.0,0.19869092]
[1718881751079,1.24695409,66498.0,66497.0,0.19869092]
[1718881751296,1.86847409,66498.0,66497.0,0.019]
[1718881751498,1.86847409,66498.0,66497.0,0.014]
[1718881751711,1.95257261,66498.0,66497.0,0.016]
[1718881751920,1.95257261,66498.0,66497.0,0.002]
[1718881752330,0.30081,66487.0,66486.0,0.0411298]
[1718881752540,0.30081,66487.0,66486.0,0.15256112]
[1718881752541,0.20196591,66487.0,66486.0,0.15256112]
[1718881752744,0.78358591,66487.0,66486.0,0.15256112]
[1718881752958,1.10439591,66487.0,66486.0,0.15978609]
[1718881753219,1.10439591,66487.0,66486.0,0.15256112]
[1718881753423,1.08439591,66487.0,66486.0,0.15256112]
[1718881753628,1.10439591,66487.0,66486.0,0.15256112]
[1718881754036,1.072866,66485.0,66484.0,0.0411298]
[1718881754268,1.10360081,66485.0,66484.0,0.19369092]
[1718881754487,1.10360081,66485.0,66484.0,0.15256112]
[1718881754703,1.08346453,66485.0,66484.0,0.19369092]
[1718881754905,1.10346453,66485.0,66484.0,0.15256112]
[1718881755195,1.08346453,66485.0,66484.0,0.19369092]
[1718881755354,1.10346453,66485.0,66484.0,0.20769092]
[1718881755691,1.10346453,66485.0,66484.0,0.16656112]
[1718881755931,1.10346453,66485.0,66484.0,0.026]
[1718881756136,1.21132468,66485.0,66484.0,0.026]
[1718881756354,2.17420389,66485.0,66484.0,0.026]
[1718881756584,7.32420389,66485.0,66484.0,0.026]
[1718881756754,7.43315576,66485.0,66484.0,0.026]
[1718881757055,7.76637301,66485.0,66484.0,0.026]
[1718881757268,5.34737301,66485.0,66484.0,0.026]
[1718881757649,4.94483893,66485.0,66484.0,0.026]
[1718881758425,2.44801993,66485.0,66484.0,0.026]
[1718881758637,2.39847049,66485.0,66484.0,0.026]
[1718881758851,0.44945262,66485.0,66484.0,0.21969092]
[1718881759058,0.3899594,66485.0,66484.0,0.21969092]
[1718881759265,0.78264553,66485.0,66484.0,0.22693775]
[1718881759471,1.65576453,66485.0,66484.0,0.22693775]
[1718881759676,1.35494553,66485.0,66484.0,0.22693775]
[1718881759875,1.35494553,66485.0,66484.0,0.21969092]
[1718881760078,1.35494553,66485.0,66484.0,0.22693764]
[1718881760279,1.35494553,66485.0,66484.0,0.21969092]
[1718881760608,1.65576453,66485.0,66484.0,0.20569092]
[1718881761035,1.65576453,66485.0,66484.0,0.21969092]
[1718881761209,1.65576453,66485.0,66484.0,0.19369092]
[1718881761622,0.78264553,66485.0,66484.0,0.21969092]
[1718881762031,0.78264553,66485.0,66484.0,0.20769092]
[1718881762275,0.18100753,66485.0,66484.0,0.20769092]
[1718881762478,0.48182653,66485.0,66484.0,0.21969092]
[1718881762614,0.17804115,66485.0,66484.0,0.22706615]
[1718881762819,1.85929815,66485.0,66484.0,0.0262]
[1718881763068,1.99246907,66485.0,66484.0,0.0262]
[1718881763853,1.99246907,66485.0,66484.0,0.0122]
[1718881764056,1.99246907,66485.0,66484.0,0.0002]
[1718881764258,1.4529737,66485.0,66484.0,0.0142]
[1718881764455,1.4529737,66485.0,66484.0,0.20589092]
[1718881764456,1.33588027,66485.0,66484.0,0.20589092]
[1718881764868,1.33786387,66485.0,66484.0,0.20589092]
[1718881765070,1.33786387,66485.0,66484.0,0.20789092]
[1718881765071,0.18002587,66485.0,66484.0,0.20789092]
[1718881765404,0.70344487,66485.0,66484.0,0.0262]
[1718881765548,0.70344487,66485.0,66484.0,0.0673298]
[1718881765549,0.78166387,66485.0,66484.0,0.0673298]
[1718881766172,0.78166387,66485.0,66484.0,0.0553298]
[1718881766385,0.78166387,66485.0,66484.0,0.20789092]
[1718881766600,0.48084487,66485.0,66484.0,0.20789092]
[1718881766977,0.48084487,66485.0,66484.0,0.19389092]
[1718881767177,0.02961687,66485.0,66484.0,0.19389092]
[1718881767384,0.46730549,66485.0,66484.0,0.19489092]
[1718881767581,0.78463648,66485.0,66484.0,0.19389092]
[1718881767953,0.03258948,66485.0,66484.0,0.19389092]
[1718881768156,0.03258948,66485.0,66484.0,0.20189092]
[1718881768358,0.03258948,66485.0,66484.0,0.19489092]
[1718881768769,0.03258948,66485.0,66484.0,0.20789092]
[1718881768969,0.03258948,66485.0,66484.0,0.20689092]
[1718881769087,0.18299848,66485.0,66484.0,0.20689092]
[1718881769290,0.18299848,66485.0,66484.0,0.21589092]
[1718881769709,0.48381748,66485.0,66484.0,0.20689092]
[1718881770134,0.48381748,66485.0,66484.0,0.20789092]
[1718881770511,0.48381748,66485.0,66484.0,0.22189092]
[1718881770931,0.48381748,66485.0,66484.0,0.20789092]
[1718881771122,0.48381748,66485.0,66484.0,0.22089092]
[1718881771123,0.78463648,66485.0,66484.0,0.22089092]
[1718881771559,0.78463648,66485.0,66484.0,0.19389092]
[1718881771794,1.10545548,66485.0,66484.0,0.0002]
[1718881772016,1.10545548,66485.0,66484.0,0.0142]
[1718881772017,1.41115548,66485.0,66484.0,0.0142]
[1718881772320,1.41115548,66485.0,66484.0,0.0232]
[1718881772936,1.41115548,66485.0,66484.0,0.0142]
[1718881773146,1.41115548,66485.0,66484.0,0.0282]
[1718881773546,1.66085548,66485.0,66484.0,0.0282]
[1718881773866,1.96167448,66485.0,66484.0,0.0282]
[1718881774093,2.14523894,66485.0,66484.0,0.0282]
[1718881774741,2.07833519,66485.0,66484.0,0.0142]
[1718881775019,2.02711734,66485.0,66484.0,0.15276112]
[1718881775162,1.92807039,66485.0,66484.0,0.15376112]
[1718881775365,1.83816547,66485.0,66484.0,0.15376112]
[1718881775622,1.90558191,66485.0,66484.0,0.15376112]
[1718881775819,1.77751619,66485.0,66484.0,0.15376112]
[1718881776033,1.90791272,66485.0,66484.0,0.15376112]
[1718881776236,1.90814376,66485.0,66484.0,0.15376112]
[1718881776451,1.84072711,66485.0,66484.0,0.15376112]
[1718881777274,1.84072711,66485.0,66484.0,0.15776112]
[1718881777486,1.93063203,66485.0,66484.0,0.15776112]
[1718881777689,1.82072711,66485.0,66484.0,0.15276112]
[1718881777828,1.93061172,66485.0,66484.0,0.15276112]
[1718881778363,1.93061172,66485.0,66484.0,0.15376112]
[1718881778625,1.95310827,66485.0,66484.0,0.15376112]
[1718881778826,1.93310827,66485.0,66484.0,0.19489092]
[1718881779028,1.91061099,66485.0,66484.0,0.19489092]
[1718881779237,0.96450811,66485.0,66484.0,0.19489092]
[1718881779399,0.88220431,66485.0,66484.0,0.19489092]
[1718881779610,0.64879723,66485.0,66484.0,0.19489092]
[1718881779822,0.62632525,66485.0,66484.0,0.19489092]
[1718881780047,0.88220431,66485.0,66484.0,0.19389092]
[1718881780515,0.88220431,66485.0,66484.0,0.19489092]
[1718881780749,0.03015731,66485.0,66484.0,0.19389092]
[1718881780960,0.18056631,66485.0,66484.0,0.19389092]
[1718881781162,0.18056631,66485.0,66484.0,0.20189092]
[1718881781163,0.03015731,66485.0,66484.0,0.20189092]
[1718881781366,0.03015731,66485.0,66484.0,0.45069092]
[1718881782292,0.03015731,66485.0,66484.0,0.44269092]
[1718881782707,0.03015731,66485.0,66484.0,0.44469092]
[1718881782917,0.03015731,66485.0,66484.0,0.61510292]
[1718881783399,0.03015731,66485.0,66484.0,1.69685092]
[1718881783635,0.03015731,66485.0,66484.0,2.01167492]
[1718881783864,0.03015731,66485.0,66484.0,2.12667492]
[1718881784072,0.01619583,66485.0,66484.0,2.11367492]
[1718881784302,0.21417175,66498.0,66496.0,0.0411298]
[1718881784533,0.21417175,66498.0,66497.0,0.19369092]
[1718881784771,0.2442177,66498.0,66497.0,0.94803792]
[1718881784982,0.2442177,66498.0,66497.0,1.42750292]
[1718881785198,0.2442177,66498.0,66497.0,1.85454964]
[1718881785417,0.2442177,66498.0,66497.0,1.77826792]
[1718881785621,0.2442177,66498.0,66497.0,2.04356792]
[1718881785622,0.23037428,66498.0,66497.0,2.04356792]
[1718881785834,0.23037428,66498.0,66497.0,2.14556792]
[1718881786089,0.06388216,66500.0,66499.0,1.7399198]
[1718881786303,0.06388216,66500.0,66499.0,2.21623692]
[1718881786724,0.00018282,66507.0,66506.0,1.0709398]
[1718881786913,0.02360922,66507.0,66506.0,1.83502492]
[1718881787512,0.02360922,66507.0,66506.0,1.88502492]
[1718881787711,0.02360922,66507.0,66506.0,1.98702492]
[1718881787914,0.00018282,66507.0,66506.0,1.88502492]
[1718881788075,0.00018282,66507.0,66506.0,1.89902492]
[1718881788472,0.00018282,66507.0,66506.0,2.30174892]
[1718881788678,0.00018282,66507.0,66506.0,2.32474892]
[1718881789291,0.00018282,66507.0,66506.0,2.33874892]
[1718881789495,0.00018282,66507.0,66506.0,2.38874892]
[1718881790099,0.00018282,66507.0,66506.0,2.28674892]
[1718881790234,0.00018282,66507.0,66506.0,1.54230092]
[1718881790438,0.00018282,66507.0,66506.0,1.56230092]
[1718881791097,0.00018282,66507.0,66506.0,0.67277692]
[1718881791302,0.00018282,66507.0,66506.0,1.15220092]
[1718881791504,0.00018282,66507.0,66506.0,1.74902492]
[1718881791712,0.00018282,66507.0,66506.0,2.16362492]
[1718881792315,0.00018282,66507.0,66506.0,2.18662492]
[1718881793796,0.00018282,66507.0,66506.0,2.08462492]
[1718881794018,0.00018282,66507.0,66506.0,2.18662492]
[1718881794434,0.00018282,66507.0,66506.0,2.18120992]
[1718881794643,0.00018282,66507.0,66506.0,2.53193392]
[1718881796064,0.15031,66529.0,66528.0,0.0357148]
[1718881796259,0.49330735,66529.0,66528.0,0.18827592]
[1718881796465,0.05603436,66529.0,66528.0,0.18827592]
[1718881796683,0.05603436,66529.0,66528.0,0.33858792]
[1718881796891,0.05603436,66529.0,66528.0,0.65921292]
[1718881797086,0.05603436,66529.0,66528.0,0.93983792]
[1718881797367,0.00862,66537.0,66536.0,0.0357148]
[1718881797625,0.00862,66537.0,66536.0,0.18827592]
[1718881797991,0.00862,66537.0,66536.0,0.33856992]
[1718881797992,0.0475795,66537.0,66536.0,0.33856992]
[1718881798194,0.0475795,66537.0,66536.0,0.18827592]
[1718881798835,0.3481635,66537.0,66536.0,0.18827592]
[1718881799035,0.0475795,66537.0,66536.0,0.18827592]
[1718881799874,0.02210832,66537.0,66536.0,0.20127592]
[1718881800285,0.17240032,66537.0,66536.0,0.21527592]
[1718881800507,0.17240032,66537.0,66536.0,0.17956112]
[1718881800508,0.47298432,66537.0,66536.0,0.17956112]
[1718881800780,1.63047135,66537.0,66536.0,0.20127592]
[1718881801031,1.32951365,66537.0,66536.0,0.21527592]
[1718881801188,1.31829462,66537.0,66536.0,0.21527592]
[1718881801429,1.02769756,66537.0,66536.0,0.21527592]
[1718881801642,0.26323567,66537.0,66536.0,0.21527592]
[1718881801848,0.02133567,66537.0,66536.0,0.20127592]
[1718881802216,0.02133567,66537.0,66536.0,0.21127592]
[1718881802474,0.02133567,66537.0,66536.0,0.19827592]
[1718881802891,0.02133567,66537.0,66536.0,0.22427592]
[1718881803507,0.03133567,66537.0,66536.0,0.21427592]
[1718881803981,0.03133567,66537.0,66536.0,0.22227592]
[1718881804605,0.03133567,66537.0,66536.0,0.53126992]
[1718881805022,0.05475774,66537.0,66536.0,0.84485892]
[1718881805235,0.05475774,66537.0,66536.0,0.88085892]
[1718881805452,0.05475774,66537.0,66536.0,0.90385892]
[1718881805453,0.04166837,66537.0,66536.0,0.90385892]
[1718881805655,0.04166837,66537.0,66536.0,0.91785892]
[1718881805828,0.04166837,66537.0,66536.0,0.22227592]
[1718881805829,0.05499984,66537.0,66536.0,0.22227592]
[1718881806030,0.03149757,66537.0,66536.0,0.22227592]
[1718881806236,0.03149757,66537.0,66536.0,0.20227592]
[1718881806445,0.03149757,66537.0,66536.0,0.21627592]
[1718881806824,0.03149757,66537.0,66536.0,0.20227592]
[1718881807021,0.03149757,66537.0,66536.0,0.36697592]
[1718881807403,0.03149757,66537.0,66536.0,0.39497592]
[1718881807627,0.03149757,66537.0,66536.0,0.38097592]
[1718881807827,0.03149757,66537.0,66536.0,0.36097592]
[1718881808056,0.03149757,66537.0,66536.0,0.38497592]
[1718881808257,0.0313681,66537.0,66536.0,0.59526992]
[1718881808454,0.0313681,66537.0,66536.0,0.38397592]
[1718881808657,0.1816601,66537.0,66536.0,0.20227592]
[1718881808858,0.0313681,66537.0,66536.0,0.20227592]
[1718881809082,0.0313681,66537.0,66536.0,0.18827592]
[1718881809284,0.0313681,66537.0,66528.0,0.05]
[1718881809285,0.3131,66536.0,66528.0,0.0357148]
[1718881809489,0.3131,66536.0,66522.0,0.0357148]
[1718881809490,0.02,66524.0,66522.0,0.0357148]
[1718881809688,0.3052,66522.0,66519.0,0.0357148]
[1718881809948,0.07628172,66520.0,66519.0,0.0357148]
[1718881810207,0.07628172,66520.0,66517.0,0.0357148]
[1718881810208,0.09998628,66520.0,66517.0,0.0357148]
[1718881810380,0.150337,66517.0,66516.0,0.0357148]
[1718881810682,0.77172,66514.0,66513.0,0.0357148]
[1718881810891,0.77172,66514.0,66508.0,0.0357148]
[1718881810892,0.5814,66510.0,66508.0,0.0357148]
[1718881811133,0.310715,66508.0,66507.0,0.0357148]
[1718881811347,0.02,66506.0,66505.0,0.0357148]
[1718881811551,0.17406656,66506.0,66505.0,0.0357148]
[1718881811827,0.79551456,66506.0,66505.0,0.0357148]
[1718881812254,1.39696356,66506.0,66505.0,0.0357148]
[1718881812470,1.39696356,66506.0,66505.0,0.18827592]
[1718881813314,1.39696356,66506.0,66500.0,0.000946]
[1718881813315,1.353361,66501.0,66500.0,0.000946]
[1718881813518,2.146561,66501.0,66500.0,0.000946]
[1718881813738,2.20060721,66501.0,66500.0,0.000946]
[1718881813974,1.35346,66496.0,66495.0,0.03566939]
[1718881814178,1.35346,66496.0,66495.0,0.18823051]
[1718881814179,1.36346,66496.0,66495.0,0.18823051]
[1718881814388,1.37630416,66496.0,66495.0,0.18823051]
[1718881815246,1.39630416,66496.0,66495.0,0.18823051]
[1718881815688,1.39630416,66496.0,66495.0,0.18923051]
[1718881816097,1.39630416,66496.0,66495.0,0.19023051]
[1718881817209,1.69707316,66496.0,66495.0,0.15356112]
[1718881817434,1.69707316,66496.0,66495.0,0.15256112]
[1718881817660,1.70307316,66496.0,66495.0,0.001]
[1718881817886,1.70307316,66496.0,66495.0,0.002]
[1718881817887,2.94353567,66496.0,66495.0,0.002]
[1718881818102,2.90288744,66496.0,66495.0,0.002]
[1718881818311,3.00288744,66496.0,66495.0,0.002]
[1718881818517,2.88288744,66496.0,66495.0,0.001]
[1718881818721,3.00288744,66496.0,66495.0,0.001]
[1718881818985,3.00288744,66496.0,66495.0,0.002]
[1718881819213,3.10488744,66496.0,66495.0,0.001]
[1718881819419,3.10488744,66496.0,66485.0,0.03566939]
[1718881819420,0.02,66487.0,66485.0,0.03566939]
[1718881819621,1.39651116,66486.0,66485.0,0.03566939]
[1718881820030,0.02,66485.0,66484.0,0.0002]
[1718881820193,1.70442916,66485.0,66484.0,0.0002]
[1718881820379,1.91633507,66485.0,66484.0,0.0002]
[1718881820584,1.91633507,66485.0,66484.0,0.15276112]
[1718881820585,1.94667444,66485.0,66484.0,0.15276112]
[1718881821164,1.94667444,66485.0,66484.0,0.15776112]
[1718881821392,1.91633507,66485.0,66484.0,0.15776112]
[1718881822215,1.91633507,66485.0,66484.0,0.15276112]
[1718881822365,1.69468924,66485.0,66484.0,0.15276112]
[1718881822565,1.69468924,66485.0,66484.0,0.15676112]
[1718881822566,1.68468924,66485.0,66484.0,0.15676112]
[1718881823178,1.78468924,66485.0,66484.0,0.15876112]
[1718881823377,1.68468924,66485.0,66484.0,0.15876112]
[1718881823562,1.84941134,66485.0,66484.0,0.15876112]
[1718881823759,1.69593172,66485.0,66484.0,0.15676112]
[1718881823964,1.68493572,66485.0,66484.0,0.15676112]
[1718881824218,1.68493572,66485.0,66484.0,0.15776112]
[1718881824484,1.42143484,66485.0,66484.0,0.15776112]
[1718881825125,1.91474717,66485.0,66484.0,0.0052]
[1718881825345,2.08431713,66485.0,66484.0,0.0052]
[1718881825561,2.36144685,66485.0,66484.0,0.0052]
[1718881825764,1.654653,66479.0,66478.0,0.000946]
[1718881825979,2.22731511,66479.0,66478.0,0.000946]
[1718881826184,2.40455831,66479.0,66478.0,0.000946]
[1718881826389,2.25769863,66479.0,66478.0,0.000946]
[1718881826565,2.21662462,66479.0,66478.0,0.000946]
[1718881826854,2.21662462,66479.0,66446.0,0.08868172]
[1718881826855,0.150495,66447.0,66446.0,0.08868172]
[1718881827101,0.451486,66447.0,66446.0,0.64618172]
[1718881827811,0.150464,66461.0,66460.0,0.0124]
[1718881828273,0.45144,66454.0,66453.0,0.0124]
[1718881828457,0.45144,66454.0,66446.0,0.80648172]
[1718881828458,0.150484,66452.0,66451.0,0.0124]
[1718881828681,0.150484,66452.0,66451.0,0.15256112]
[1718881828682,0.451453,66452.0,66451.0,0.15256112]
[1718881828896,0.451453,66452.0,66446.0,0.014]
[1718881828897,0.71787843,66452.0,66446.0,0.014]
[1718881829053,0.451542,66439.0,66434.0,0.06031]
[1718881829228,0.451542,66439.0,66433.0,0.009493]
[1718881829229,2.14512817,66439.0,66433.0,0.009493]
[1718881829448,2.24512817,66439.0,66433.0,0.009493]
[1718881829854,2.24512817,66439.0,66438.0,8.99]
[1718881830082,2.29056833,66439.0,66438.0,8.99]
[1718881830288,2.59159633,66439.0,66438.0,8.99]
[1718881830707,2.59259633,66439.0,66438.0,8.991]
[1718881830909,2.33263466,66439.0,66438.0,8.991]
[1718881831154,1.89047933,66439.0,66438.0,8.991]
[1718881831453,1.89047933,66439.0,66438.0,9.15496112]
[1718881831454,0.75257,66439.0,66438.0,9.15496112]
[1718881831589,0.451542,66439.0,66438.0,9.16349909]
[1718881831768,0.75757,66439.0,66438.0,9.16549909]
[1718881832012,0.75357,66439.0,66438.0,9.16449909]
[1718881832470,0.75757,66439.0,66438.0,9.16549909]
[1718881832917,0.456542,66439.0,66438.0,9.16549909]
[1718881833120,0.005,66439.0,66438.0,9.16549909]
[1718881833332,0.004,66439.0,66438.0,9.16449909]
[1718881833928,0.162514,66439.0,66438.0,9.15309909]
[1718881834186,0.76457,66439.0,66438.0,9.15309909]
[1718881834637,0.76057,66439.0,66438.0,9.16449909]
[1718881834848,0.76057,66439.0,66438.0,9.15209909]
[1718881835054,1.053598,66439.0,66438.0,9.15509909]
[1718881835261,1.308698,66439.0,66438.0,9.15509909]
[1718881835469,1.308698,66439.0,66438.0,9.00253797]
[1718881835710,1.308698,66439.0,66438.0,8.99853797]
[1718881836125,0.451542,66439.0,66438.0,9.16849909]
[1718881836344,0.451542,66439.0,66438.0,9.16349909]
[1718881836561,0.001,66439.0,66438.0,9.17549909]
[1718881836992,0.451542,66439.0,66438.0,9.16349909]
[1718881837406,0.301006,66444.0,66438.0,9.15209909]
[1718881837617,0.150509,66441.0,66440.0,0.0124]
[1718881837854,0.752545,66441.0,66440.0,0.16496112]
[1718881838044,0.752545,66441.0,66440.0,0.16114956]
[1718881838253,0.150507,66442.0,66440.0,0.17354956]
[1718881838466,0.150507,66442.0,66441.0,0.16496112]
[1718881838671,0.752535,66442.0,66441.0,0.16496112]
[1718881838906,0.150507,66442.0,66441.0,0.17354719]
[1718881839351,0.300993,66447.0,66446.0,0.0124]
[1718881839352,0.150495,66447.0,66446.0,0.0124]
[1718881839605,0.300984,66449.0,66448.0,0.0124]
[1718881839815,0.001,66450.0,66449.0,0.162891]
[1718881840030,0.001,66450.0,66449.0,0.16496112]
[1718881840255,0.001,66450.0,66449.0,0.17352592]
[1718881840256,0.301978,66450.0,66449.0,0.17352592]